[Event "GER-ch Youth U14 2019"]
[Site "Willingen"]
[Date "2019.06.09"]
[Round "1.10"]
[White "Bui, Bao Anh Le"]
[Black "Wang, Xinyuan"]
[Result "1-0"]
[ECO "B06"]
[WhiteElo "2065"]
[BlackElo "2060"]
[Annotator "NA"]
[PlyCount "87"]
[EventDate "2019.06.07"]
[EventType "swiss"]
[EventRounds "9"]
[EventCountry "GER"]
[SourceTitle "playchess.com"]
[Source "ChessBase"]
[SourceQuality "1"]
[TimeControl "40/5400+30:1800+30"]

1. e4 {[%emt 0:00:14]} g6 {[%emt 0:00:00]} 2. d4 {[%emt 0:00:13]} Bg7 {[%emt 0:00:00]} 3. Nc3 {[%emt 0:00:51]} d6 {[%emt 0:00:11]} 4. Be3 {[%emt 0:00:14]} a6 {[%emt 0:00:41]} 5. Qd2 {[%emt 0:00:22]} b5 {[%emt 0:01:21]} 6. Bd3 {[%emt 0:09:41]} Bb7 {[%emt 0:05:01]} 7. a4 {[%emt 0:05:01]} b4 {[%emt 0:02:23]} 8. Na2 {[%emt 0:00:17]} a5 {[%emt 0:00:12]} 9. c3 {[%emt 0:00:09]} bxc3 {[%emt 0:23:43]} 10. Nxc3 {[%emt 0:00:18]} Na6 {[%emt 0:02:41]} 11. Nge2 {[%emt 0:39:53]} Nb4 {[%emt 0:05:58]} 12. Rc1 {[%emt 0:10:19]} d5 {[%emt 0:24:22]} 13. Nxd5 {[%emt 0:02:41]} Bxd5 {[%emt 0:06:33]} 14. exd5 {[%emt 0:00:30]} Qxd5 {[%emt 0:02:46]} 15. O-O {[%emt 0:05:27]} Rc8 {[%emt 0:06:11]} 16. Rc5 {[%emt 0:00:26]} Qa8 {[%emt 0:01:41]} 17. Rfc1 {[%emt 0:03:06]} c6 {[%emt 0:00:27]} 18. d5 {[%emt 0:04:27]} Nf6 {[%emt 0:01:33]} 19. dxc6 {[%emt 0:04:30]} O-O {[%emt 0:00:17]} 20. c7 {[%emt 0:02:35]} Nd7 {[%emt 0:00:59]} 21. Rb5 {[%emt 0:00:20]} Bxb2 {[%emt 0:02:57]} 22. Rb1 {[%emt 0:03:59]} Ne5 {[%emt 0:03:47]} 23. Rxb4 Nxd3 24. R4xb2 {[%emt 0:03:22]} Nxb2 {[%emt 0:01:01]} 25. Qxb2 {[%emt 0:00:03]} f6 {[%emt 0:00:50]} 26. Qb7 {[%emt 0:00:56]} Kf7 {[%emt 0:01:50]} 27. Nd4 {[%emt 0:00:51]} Qxb7 {[%emt 0:01:42]} 28. Rxb7 {[%emt 0:00:06]} e5 {[%emt 0:00:30]} 29. Nc6 {[%emt 0:00:35]} Ke6 {[%emt 0:00:46]} 30. Na7 {[%emt 0:00:21]} Ra8 {[%emt 0:00:16]} 31. Kf1 {[%emt 0:00:44]} h5 {[%emt 0:00:21]} 32. c8=Q+ {[%emt 0:00:55]} Rfxc8 {[%emt 0:00:10]} 33. Nxc8 {[%emt 0:00:10]} Rxc8 {[%emt 0:00:03]} 34. Rb6+ {[%emt 0:00:16]} Kf5 {[%emt 0:00:23]} 35. Rb5 {[%emt 0:00:09]} Ke4 {[%emt 0:01:23]} 36. Rxa5 {[%emt 0:00:35]} f5 {[%emt 0:00:24]} 37. Rc5 {[%emt 0:00:12]} Rb8 {[%emt 0:00:19]} 38. Rb5 {[%emt 0:00:04]} Ra8 {[%emt 0:00:26]} 39. a5 {[%emt 0:01:13]} f4 {[%emt 0:00:15]} 40. Bb6 {[%emt 0:00:06]} Rc8 {[%emt 0:00:46]} 41. Rc5 {[%emt 0:30:10]} Ra8 {[%emt 0:30:06]} 42. Ke2 {[%emt 0:00:30]} g5 {[%emt 0:00:25]} 43. f3+ {[%emt 0:00:12]} Kf5 {[%emt 0:00:04]} 44. Bc7 {[%emt 0:00:15] normal} 1-0

[Event "GER-ch Youth U14 2019"]
[Site "Willingen"]
[Date "2019.06.09"]
[Round "1.11"]
[White "May, Ben-Iven"]
[Black "Eilenberg, Jonas"]
[Result "1/2-1/2"]
[ECO "B31"]
[WhiteElo "1692"]
[BlackElo "1934"]
[Annotator "NA"]
[PlyCount "70"]
[EventDate "2019.06.07"]
[EventType "swiss"]
[EventRounds "9"]
[EventCountry "GER"]
[SourceTitle "playchess.com"]
[Source "ChessBase"]
[SourceQuality "1"]
[TimeControl "40/5400+30:1800+30"]

1. e4 {[%emt 0:00:00]} c5 {[%emt 0:00:00]} 2. Nf3 {[%emt 0:00:00]} Nc6 {[%emt 0:00:00]} 3. Bb5 {[%emt 0:00:22]} g6 {[%emt 0:00:05]} 4. Bxc6 {[%emt 0:00:56]} dxc6 {[%emt 0:00:13]} 5. O-O {[%emt 0:00:27]} Bg7 {[%emt 0:01:01]} 6. d3 {[%emt 0:00:36]} Nf6 {[%emt 0:00:53]} 7. Bd2 {[%emt 0:05:01]} Nd7 {[%emt 0:02:12]} 8. Bc3 {[%emt 0:00:27]} e5 {[%emt 0:01:42]} 9. Nbd2 {[%emt 0:02:25]} O-O {[%emt 0:03:04]} 10. Re1 {[%emt 0:08:06]} Re8 {[%emt 0:07:15]} 11. a4 {[%emt 0:06:26]} Nf8 {[%emt 0:08:56]} 12. Nc4 {[%emt 0:00:42]} Qc7 {[%emt 0:08:23]} 13. a5 {[%emt 0:10:44]} f6 {[%emt 0:05:34]} 14. b4 {[%emt 0:18:54]} cxb4 {[%emt 0:07:28]} 15. Bxb4 {[%emt 0:00:02]} Ne6 {[%emt 0:00:49]} 16. Bd6 {[%emt 0:07:28]} Qd7 {[%emt 0:01:29]} 17. d4 {[%emt 0:03:47]} exd4 {[%emt 0:14:13]} 18. Nxd4 {[%emt 0:00:03]} Nxd4 {[%emt 0:01:25]} 19. Qxd4 {[%emt 0:00:02]} Qe6 {[%emt 0:11:13]} 20. Rad1 {[%emt 0:12:04]} Bd7 {[%emt 0:06:45]} 21. Rb1 {[%emt 0:09:53]} c5 {[%emt 0:02:50]} 22. Bxc5 {[%emt 0:01:36]} Bc6 {[%emt 0:00:15]} 23. Rbd1 {[%emt 0:06:06]} Bxe4 {[%emt 0:03:47]} 24. Nd6 {[%emt 0:03:18]} f5 {[%emt 0:01:44]} 25. Qb4 {[%emt 0:00:13]} b6 {[%emt 0:06:46]} 26. Nxe8 {[%emt 0:00:48]} Rxe8 {[%emt 0:01:24]} 27. axb6 {[%emt 0:00:54]} axb6 {[%emt 0:00:05]} 28. Qxb6 {[%emt 0:00:44]} Qxb6 {[%emt 0:00:12]} 29. Bxb6 {[%emt 0:00:02]} Rb8 {[%emt 0:01:05]} 30. Rxe4 {[%emt 0:01:33]} fxe4 {[%emt 0:00:19]} 31. Rd8+ {[%emt 0:00:01]} Rxd8 {[%emt 0:00:09]} 32. Bxd8 {[%emt 0:00:02]} Kf7 {[%emt 0:00:11]} 33. c4 {[%emt 0:00:35]} Bd4 {[%emt 0:00:36]} 34. Kf1 {[%emt 0:00:47]} Ke6 {[%emt 0:00:30]} 35. Ke2 {[%emt 0:01:02]} Kd6 {[%emt 0:00:47] normal} 1/2-1/2

[Event "GER-ch Youth U14 2019"]
[Site "Willingen"]
[Date "2019.06.09"]
[Round "1.12"]
[White "Hetzner, Hannes"]
[Black "Chassard, Cedric"]
[Result "1/2-1/2"]
[ECO "E06"]
[WhiteElo "1996"]
[BlackElo "1772"]
[Annotator "NA"]
[PlyCount "95"]
[EventDate "2019.06.07"]
[EventType "swiss"]
[EventRounds "9"]
[EventCountry "GER"]
[SourceTitle "playchess.com"]
[Source "ChessBase"]
[SourceQuality "1"]
[TimeControl "40/5400+30:1800+30"]

1. d4 {[%emt 0:00:00]} Nf6 {[%emt 0:00:00]} 2. c4 {[%emt 0:00:00]} e6 {[%emt 0:00:00]} 3. g3 {[%emt 0:00:00]} d5 {[%emt 0:00:00]} 4. Nf3 {[%emt 0:00:16]} Be7 {[%emt 0:00:00]} 5. Bg2 {[%emt 0:00:15]} O-O {[%emt 0:00:00]} 6. O-O {[%emt 0:00:09]} dxc4 {[%emt 0:00:00]} 7. Qc2 {[%emt 0:00:09]} a6 {[%emt 0:00:00]} 8. a4 {[%emt 0:00:10]} Bd7 {[%emt 0:00:43]} 9. Qxc4 {[%emt 0:00:13]} Bc6 {[%emt 0:00:49]} 10. Bf4 {[%emt 0:00:26]} Bd6 {[%emt 0:01:43]} 11. Qc1 {[%emt 0:01:28]} Bxf4 {[%emt 0:00:58]} 12. Qxf4 {[%emt 0:00:26]} Qd6 {[%emt 0:00:40]} 13. Qd2 {[%emt 0:09:08]} Rd8 {[%emt 0:13:36]} 14. Rd1 {[%emt 0:12:39]} Bd5 {[%emt 0:04:26]} 15. Nc3 {[%emt 0:03:33]} Ne4 {[%emt 0:02:12]} 16. Qc2 {[%emt 0:04:07]} Nxc3 17. bxc3 {[%emt 0:00:49]} Qc6 {[%emt 0:08:55]} 18. Ne5 {[%emt 0:04:50]} Qd6 {[%emt 0:05:37]} 19. e4 {[%emt 0:02:02]} Bc6 {[%emt 0:01:28]} 20. Rab1 {[%emt 0:04:23]} b6 {[%emt 0:02:57]} 21. Nc4 {[%emt 0:12:44]} Qe7 {[%emt 0:04:48]} 22. Ne3 {[%emt 0:04:10]} Nd7 {[%emt 0:01:32]} 23. f4 {[%emt 0:02:13]} Nf6 {[%emt 0:02:24]} 24. f5 {[%emt 0:06:02]} exf5 {[%emt 0:02:25]} 25. Nxf5 {[%emt 0:01:59]} Qe8 {[%emt 0:01:03]} 26. Re1 {[%emt 0:08:10]} g6 {[%emt 0:05:51]} 27. Nh6+ {[%emt 0:04:24]} Kg7 {[%emt 0:01:18]} 28. e5 {[%emt 0:02:13]} Ng8 {[%emt 0:01:26]} 29. Ng4 {[%emt 0:02:31]} Bxg2 {[%emt 0:00:41]} 30. Kxg2 {[%emt 0:02:32]} Qc6+ {[%emt 0:00:20]} 31. Qe4 {[%emt 0:01:21]} Qxc3 {[%emt 0:06:32]} 32. Red1 {[%emt 0:04:58]} Qc4 {[%emt 0:06:38]} 33. Rbc1 {[%emt 0:01:53]} Qxa4 {[%emt 0:02:49]} 34. e6 {[%emt 0:00:55]} Qa2+ {[%emt 0:01:11]} 35. Kf3 {[%emt 0:03:34]} Qxe6 {[%emt 0:02:50]} 36. Qxe6 {[%emt 0:00:20]} fxe6 {[%emt 0:00:07]} 37. Rxc7+ {[%emt 0:00:04]} Kh8 {[%emt 0:04:17]} 38. Ke4 {[%emt 0:01:57]} Re8 {[%emt 0:02:44]} 39. Rdc1 {[%emt 0:01:40]} Re7 {[%emt 0:01:24]} 40. Ke5 {[%emt 0:00:34]} Rae8 {[%emt 0:05:29]} 41. R7c6 {[%emt 0:18:04]} Rd8 {[%emt 0:04:28]} 42. Rxb6 {[%emt 0:02:34]} Red7 {[%emt 0:00:25]} 43. Rc4 {[%emt 0:01:50]} Kg7 {[%emt 0:03:30]} 44. Rxe6 {[%emt 0:05:41]} h5 {[%emt 0:00:22]} 45. Ne3 {[%emt 0:02:02]} Nh6 {[%emt 0:00:36]} 46. d5 {[%emt 0:00:53]} Nf7+ {[%emt 0:01:35]} 47. Kf4 {[%emt 0:01:20]} Rf8 {[%emt 0:01:14]} 48. Rcc6 {normal} 1/2-1/2

[Event "GER-ch Youth U14 2019"]
[Site "Willingen"]
[Date "2019.06.09"]
[Round "1.13"]
[White "Kolmykov, Egor"]
[Black "Simukov, Erik"]
[Result "0-1"]
[ECO "C22"]
[WhiteElo "1642"]
[BlackElo "1904"]
[Annotator "NA"]
[PlyCount "72"]
[EventDate "2019.06.07"]
[EventType "swiss"]
[EventRounds "9"]
[EventCountry "GER"]
[SourceTitle "playchess.com"]
[Source "ChessBase"]
[SourceQuality "1"]
[TimeControl "40/5400+30:1800+30"]

1. e4 {[%emt 0:00:00]} e5 {[%emt 0:00:00]} 2. d4 {[%emt 0:00:00]} exd4 {[%emt 0:00:00]} 3. Qxd4 {[%emt 0:00:00]} Nc6 {[%emt 0:00:12]} 4. Qe3 {[%emt 0:00:00]} d6 {[%emt 0:02:07]} 5. Nc3 {[%emt 0:01:42]} Be6 {[%emt 0:02:03]} 6. Bd2 {[%emt 0:01:32]} Qd7 {[%emt 0:00:34]} 7. O-O-O {[%emt 0:01:53]} O-O-O {[%emt 0:00:12]} 8. f4 {[%emt 0:05:11]} f5 {[%emt 0:12:48]} 9. Bb5 {[%emt 0:13:47]} a6 {[%emt 0:02:23]} 10. Bxc6 {[%emt 0:02:31]} Qxc6 {[%emt 0:00:10]} 11. Nf3 {[%emt 0:02:37]} fxe4 {[%emt 0:12:47]} 12. Nd4 {[%emt 0:01:42]} Qd7 {[%emt 0:00:10]} 13. Qxe4 {[%emt 0:03:32]} Bg4 {[%emt 0:00:46]} 14. Rde1 {[%emt 0:00:43]} Nf6 {[%emt 0:00:21]} 15. Qd3 {[%emt 0:01:03]} c5 {[%emt 0:21:05]} 16. Nf3 {[%emt 0:09:10]} Bf5 {[%emt 0:00:45]} 17. Qc4 {[%emt 0:02:57]} d5 {[%emt 0:01:16]} 18. Qa4 {[%emt 0:05:16]} Qxa4 {[%emt 0:06:45]} 19. Nxa4 {[%emt 0:00:10]} b5 {[%emt 0:02:12]} 20. Ba5 {[%emt 0:02:43]} bxa4 {[%emt 0:04:52]} 21. Bxd8 {[%emt 0:00:18]} Kxd8 {[%emt 0:00:06]} 22. Ng5 {[%emt 0:02:51]} Kd7 {[%emt 0:01:00]} 23. Nf7 {[%emt 0:02:35]} Rg8 {[%emt 0:00:28]} 24. h3 {[%emt 0:06:56]} Be4 {[%emt 0:13:48]} 25. Rh2 {[%emt 0:02:31]} c4 {[%emt 0:03:01]} 26. g4 {[%emt 0:00:57]} a3 {[%emt 0:01:48]} 27. c3 {[%emt 0:01:42]} axb2+ {[%emt 0:02:57]} 28. Kxb2 {[%emt 0:00:02]} Bc5 {[%emt 0:00:14]} 29. Rd2 {[%emt 0:00:57]} Rb8+ {[%emt 0:00:27]} 30. Ka1 {[%emt 0:00:26]} Be3 {[%emt 0:01:02]} 31. Rdd1 {[%emt 0:00:25]} Bxf4 {[%emt 0:00:24]} 32. g5 {[%emt 0:00:46]} Ke7 {[%emt 0:02:57]} 33. gxf6+ {[%emt 0:00:32]} Kxf7 {[%emt 0:00:07]} 34. fxg7 {[%emt 0:00:28]} Kxg7 {[%emt 0:00:49]} 35. a4 {[%emt 0:01:16]} Rb3 {[%emt 0:00:50]} 36. Rg1+ {[%emt 0:00:23]} Kf6 {normal} 0-1

[Event "GER-ch Youth U14 2019"]
[Site "Willingen"]
[Date "2019.06.09"]
[Round "1.14"]
[White "Laux, Dominik"]
[Black "Seng, Alexander"]
[Result "1-0"]
[ECO "A45"]
[WhiteElo "2061"]
[BlackElo "1505"]
[Annotator "NA"]
[PlyCount "73"]
[EventDate "2019.06.07"]
[EventType "swiss"]
[EventRounds "9"]
[EventCountry "GER"]
[SourceTitle "playchess.com"]
[Source "ChessBase"]
[SourceQuality "1"]
[TimeControl "40/5400+30:1800+30"]

1. d4 {[%emt 0:00:00]} Nf6 {[%emt 0:00:14]} 2. Bg5 {[%emt 0:00:28]} Ne4 {[%emt 0:00:33]} 3. Bf4 {[%emt 0:00:09]} Nc6 {[%emt 0:01:40]} 4. e3 {[%emt 0:00:44]} d5 {[%emt 0:00:44]} 5. Bd3 {[%emt 0:01:28]} Bf5 {[%emt 0:10:39]} 6. f3 {[%emt 0:11:17]} Nd6 {[%emt 0:02:21]} 7. Bxd6 {[%emt 0:01:25]} Bxd3 {[%emt 0:01:19]} 8. Bxe7 {[%emt 0:03:35]} Qxe7 {[%emt 0:07:06]} 9. Qxd3 {[%emt 0:03:16]} O-O-O {[%emt 0:00:19]} 10. a3 {[%emt 0:02:39]} g6 {[%emt 0:00:37]} 11. Nd2 {[%emt 0:02:43]} Bh6 {[%emt 0:01:06]} 12. Kf2 {[%emt 0:03:28]} Rhe8 {[%emt 0:04:42]} 13. Re1 {[%emt 0:03:32]} f5 {[%emt 0:04:02]} 14. Re2 {[%emt 0:05:46]} Qf6 {[%emt 0:11:30]} 15. g3 {[%emt 0:09:00]} g5 {[%emt 0:08:51]} 16. c3 {[%emt 0:03:34]} Rd7 {[%emt 0:04:46]} 17. f4 {[%emt 0:06:23]} Rde7 {[%emt 0:05:01]} 18. Ndf3 {[%emt 0:03:10]} gxf4 {[%emt 0:09:37]} 19. exf4 {[%emt 0:00:58]} Re4 {[%emt 0:00:57]} 20. Ke1 {[%emt 0:06:19]} Ne7 {[%emt 0:00:33]} 21. Ne5 {[%emt 0:00:50]} Ng6 {[%emt 0:01:54]} 22. Nh3 {[%emt 0:03:46]} Nxe5 {[%emt 0:03:22]} 23. dxe5 {[%emt 0:01:09]} Qc6 {[%emt 0:01:24]} 24. Nf2 {[%emt 0:02:10]} Rxe2+ {[%emt 0:00:31]} 25. Kxe2 {[%emt 0:00:11]} Rf8 {[%emt 0:00:46]} 26. Rd1 {[%emt 0:01:45]} d4 {[%emt 0:01:17]} 27. Qxd4 {[%emt 0:04:07]} Qb5+ {[%emt 0:02:11]} 28. c4 {[%emt 0:00:38]} Qa4 {[%emt 0:00:07]} 29. b3 {[%emt 0:00:33]} Qc6 {[%emt 0:00:43]} 30. Qxa7 {[%emt 0:04:33]} b6 {[%emt 0:01:54]} 31. Qa6+ {[%emt 0:01:16]} Kb8 {[%emt 0:00:06]} 32. Qb5 {[%emt 0:00:18]} Qg6 {[%emt 0:01:38]} 33. c5 {[%emt 0:03:50]} Qh5+ {[%emt 0:00:32]} 34. Kf1 {[%emt 0:02:13]} Qg6 35. cxb6 {[%emt 0:01:39]} Qxb6 {[%emt 0:03:31]} 36. Qxb6+ {[%emt 0:00:42]} cxb6 37. Rd6 {normal} 1-0

[Event "GER-ch Youth U14 2019"]
[Site "Willingen"]
[Date "2019.06.09"]
[Round "1.15"]
[White "Gutewort, Paul Emil"]
[Black "Roehr, Oliver"]
[Result "1/2-1/2"]
[ECO "A20"]
[WhiteElo "1708"]
[BlackElo "1960"]
[Annotator "NA"]
[PlyCount "72"]
[EventDate "2019.06.07"]
[EventType "swiss"]
[EventRounds "9"]
[EventCountry "GER"]
[SourceTitle "playchess.com"]
[Source "ChessBase"]
[SourceQuality "1"]
[TimeControl "40/5400+30:1800+30"]

1. c4 {[%emt 0:00:00]} e5 {[%emt 0:00:00]} 2. g3 {[%emt 0:00:00]} Nf6 {[%emt 0:00:00]} 3. Bg2 {[%emt 0:00:00]} d5 {[%emt 0:00:00]} 4. cxd5 {[%emt 0:00:32]} Nxd5 {[%emt 0:00:00]} 5. Nc3 {[%emt 0:00:06]} Nb6 {[%emt 0:00:07]} 6. Nf3 {[%emt 0:01:15]} Nc6 {[%emt 0:00:09]} 7. d3 {[%emt 0:01:41]} Be7 {[%emt 0:00:41]} 8. a3 {[%emt 0:00:47]} Be6 {[%emt 0:03:21]} 9. Bd2 {[%emt 0:01:37]} O-O {[%emt 0:09:27]} 10. O-O {[%emt 0:02:15]} a5 {[%emt 0:15:11]} 11. Be3 {[%emt 0:18:18]} Nd5 {[%emt 0:05:15]} 12. Nxd5 {[%emt 0:05:45]} Bxd5 {[%emt 0:00:50]} 13. Qc2 {[%emt 0:02:54]} a4 {[%emt 0:10:01]} 14. Nd2 {[%emt 0:08:38]} Bxg2 {[%emt 0:13:08]} 15. Kxg2 {[%emt 0:00:08]} Kh8 {[%emt 0:05:36]} 16. Nf3 {[%emt 0:03:17]} f5 {[%emt 0:02:52]} 17. Rad1 {[%emt 0:03:01]} f4 {[%emt 0:03:39]} 18. Bc5 {[%emt 0:00:33]} Ra5 {[%emt 0:01:54]} 19. Bxe7 {[%emt 0:00:10]} Qxe7 {[%emt 0:00:47]} 20. Rc1 {[%emt 0:02:34]} Qd6 {[%emt 0:04:34]} 21. Qc4 {[%emt 0:11:04]} h6 {[%emt 0:07:37]} 22. Rfe1 {[%emt 0:03:29]} Qf6 {[%emt 0:02:48]} 23. Rf1 {[%emt 0:04:16]} Rf7 {[%emt 0:01:50]} 24. Qe4 {[%emt 0:10:16]} Re7 {[%emt 0:05:17]} 25. Rc2 {[%emt 0:04:14]} Qe6 {[%emt 0:02:39]} 26. Rfc1 {[%emt 0:05:33]} Qd5 {[%emt 0:01:46]} 27. Qxd5 {[%emt 0:00:51]} Rxd5 {[%emt 0:00:01]} 28. Rc4 {[%emt 0:00:36]} fxg3 {[%emt 0:00:35]} 29. hxg3 {[%emt 0:00:07]} Ra5 {[%emt 0:02:47]} 30. Re4 {[%emt 0:02:16]} Kg8 {[%emt 0:01:12]} 31. Rcc4 {[%emt 0:00:17]} Rb5 {[%emt 0:00:07]} 32. Rc2 {[%emt 0:00:41]} Ra5 {[%emt 0:00:51]} 33. Rcc4 {[%emt 0:00:23]} Rb5 {[%emt 0:00:28]} 34. Rc2 {[%emt 0:00:07]} Ra5 {[%emt 0:00:39]} 35. Rcc4 Rb5 36. Rc2 Ra5 {normal} 1/2-1/2

[Event "GER-ch Youth U14 2019"]
[Site "Willingen"]
[Date "2019.06.09"]
[Round "1.16"]
[White "Haufe, Laurin"]
[Black "Silva, Tiago Alexandre Pinh"]
[Result "1/2-1/2"]
[ECO "C01"]
[WhiteElo "1995"]
[BlackElo "1817"]
[Annotator "NA"]
[PlyCount "96"]
[EventDate "2019.06.07"]
[EventType "swiss"]
[EventRounds "9"]
[EventCountry "GER"]
[SourceTitle "playchess.com"]
[Source "ChessBase"]
[SourceQuality "1"]
[TimeControl "40/5400+30:1800+30"]

1. e4 {[%emt 0:00:00]} e6 {[%emt 0:00:00]} 2. d4 {[%emt 0:00:00]} d5 {[%emt 0:00:00]} 3. exd5 {[%emt 0:00:00]} exd5 {[%emt 0:00:00]} 4. Nf3 {[%emt 0:00:13]} Nf6 {[%emt 0:00:00]} 5. Bd3 {[%emt 0:00:18]} Bd6 {[%emt 0:00:00]} 6. O-O {[%emt 0:00:27]} O-O {[%emt 0:00:01]} 7. Bg5 {[%emt 0:00:22]} h6 {[%emt 0:01:54]} 8. Bh4 {[%emt 0:00:31]} Be6 {[%emt 0:00:43]} 9. Nbd2 {[%emt 0:01:39]} Nbd7 {[%emt 0:00:24]} 10. Re1 {[%emt 0:01:04]} Re8 {[%emt 0:03:38]} 11. Ne5 {[%emt 0:02:47]} c6 {[%emt 0:00:09]} 12. c3 {[%emt 0:02:34]} Qb6 {[%emt 0:05:59]} 13. Qc2 {[%emt 0:04:44]} Rac8 {[%emt 0:06:42]} 14. b4 {[%emt 0:08:25]} g5 {[%emt 0:06:00]} 15. Bg3 {[%emt 0:01:09]} Bxe5 {[%emt 0:01:41]} 16. Bxe5 {[%emt 0:04:29]} Nxe5 {[%emt 0:00:43]} 17. Rxe5 {[%emt 0:00:51]} Qc7 {[%emt 0:03:24]} 18. Nf1 {[%emt 0:03:25]} Ng4 {[%emt 0:06:17]} 19. Re2 {[%emt 0:01:20]} Kg7 {[%emt 0:03:44]} 20. Rae1 {[%emt 0:02:42]} Bd7 {[%emt 0:02:14]} 21. Re7 {[%emt 0:02:10]} Rxe7 {[%emt 0:02:15]} 22. Rxe7 {[%emt 0:00:58]} Nf6 {[%emt 0:01:17]} 23. Ng3 {[%emt 0:09:12]} Kf8 {[%emt 0:05:04]} 24. Re5 {[%emt 0:12:19]} Ng4 {[%emt 0:03:55]} 25. Re1 {[%emt 0:03:06]} Re8 {[%emt 0:01:55]} 26. Rxe8+ {[%emt 0:00:35]} Kxe8 {[%emt 0:00:10]} 27. Qe2+ {[%emt 0:01:27]} Kf8 {[%emt 0:00:35]} 28. h3 {[%emt 0:04:06]} Nf6 {[%emt 0:02:39]} 29. Bf5 {[%emt 0:04:06]} Qf4 {[%emt 0:02:40]} 30. Qc2 {[%emt 0:05:53]} Bxf5 {[%emt 0:04:34]} 31. Nxf5 {[%emt 0:00:41]} Qe4 {[%emt 0:00:54]} 32. Qxe4 {[%emt 0:04:37]} Nxe4 {[%emt 0:00:18]} 33. Kf1 {[%emt 0:02:19]} Nxc3 {[%emt 0:00:19]} 34. a3 {[%emt 0:00:51]} Nb5 {[%emt 0:01:23]} 35. a4 {[%emt 0:00:28]} Nc3 {[%emt 0:00:14]} 36. Nd6 {[%emt 0:01:00]} Ke7 {[%emt 0:01:20]} 37. Nxb7 {[%emt 0:00:39]} Nxa4 {[%emt 0:00:10]} 38. Ke1 {[%emt 0:01:47]} Kd7 {[%emt 0:00:46]} 39. Kd2 {[%emt 0:01:13]} Kc7 {[%emt 0:00:27]} 40. Na5 {[%emt 0:00:15]} Nb6 {[%emt 0:03:53]} 41. Kd3 {[%emt 0:31:52]} Nc8 {[%emt 0:32:35]} 42. Nb3 {[%emt 0:02:32]} Nd6 {[%emt 0:00:41]} 43. Nc5 {[%emt 0:01:26]} Nb7 {[%emt 0:00:32]} 44. f3 {[%emt 0:03:12]} Nxc5+ {[%emt 0:00:11]} 45. bxc5 {[%emt 0:00:15]} h5 {[%emt 0:02:17]} 46. g4 {[%emt 0:01:02]} hxg4 {[%emt 0:00:56]} 47. hxg4 {[%emt 0:00:49]} Kb7 {[%emt 0:01:44]} 48. Kc3 {[%emt 0:00:31]} Ka6 {[%emt 0:00:20] normal} 1/2-1/2

[Event "GER-ch Youth U14 2019"]
[Site "Willingen"]
[Date "2019.06.09"]
[Round "1.17"]
[White "Wildermuth, Nikolas Karl"]
[Black "von Krosigk, Florian"]
[Result "0-1"]
[ECO "A00"]
[WhiteElo "1748"]
[BlackElo "1926"]
[Annotator "NA"]
[PlyCount "56"]
[EventDate "2019.06.07"]
[EventType "swiss"]
[EventRounds "9"]
[EventCountry "GER"]
[SourceTitle "playchess.com"]
[Source "ChessBase"]
[SourceQuality "1"]
[TimeControl "40/5400+30:1800+30"]

1. g3 {[%emt 0:00:00]} Nf6 {[%emt 0:00:18]} 2. Bg2 {[%emt 0:00:00]} e6 {[%emt 0:01:36]} 3. d3 {[%emt 0:00:00]} d5 {[%emt 0:02:24]} 4. a3 {[%emt 0:00:05]} c5 {[%emt 0:02:31]} 5. Nd2 {[%emt 0:00:36]} Nc6 {[%emt 0:06:05]} 6. c4 {[%emt 0:01:24]} Be7 {[%emt 0:02:00]} 7. Ngf3 {[%emt 0:01:26]} O-O {[%emt 0:00:14]} 8. O-O {[%emt 0:00:07]} Rb8 {[%emt 0:08:36]} 9. b3 {[%emt 0:01:11]} b5 {[%emt 0:02:42]} 10. cxd5 {[%emt 0:00:56]} exd5 {[%emt 0:00:41]} 11. Bb2 {[%emt 0:01:22]} d4 {[%emt 0:04:31]} 12. Rc1 {[%emt 0:02:17]} Bb7 {[%emt 0:06:29]} 13. Ng5 {[%emt 0:02:13]} Na5 {[%emt 0:02:21]} 14. Bxb7 {[%emt 0:03:42]} Rxb7 {[%emt 0:02:16]} 15. Ngf3 {[%emt 0:01:38]} Qd5 {[%emt 0:04:25]} 16. b4 {[%emt 0:02:11]} cxb4 {[%emt 0:00:25]} 17. axb4 {[%emt 0:02:25]} Nc6 {[%emt 0:11:32]} 18. Nb3 {[%emt 0:01:19]} Bxb4 {[%emt 0:06:52]} 19. Nbxd4 {[%emt 0:01:18]} Nxd4 {[%emt 0:00:40]} 20. Bxd4 {[%emt 0:00:54]} Nd7 {[%emt 0:02:08]} 21. Rb1 {[%emt 0:06:27]} a5 {[%emt 0:01:35]} 22. e4 {[%emt 0:01:26]} Qd6 {[%emt 0:01:41]} 23. Qe2 {[%emt 0:10:28]} Ba3 {[%emt 0:04:23]} 24. Bb2 {[%emt 0:08:09]} Bxb2 {[%emt 0:00:55]} 25. Rxb2 {[%emt 0:00:56]} a4 {[%emt 0:05:34]} 26. e5 {[%emt 0:03:54]} Qd5 {[%emt 0:01:39]} 27. Rb4 {[%emt 0:03:12]} Nc5 {[%emt 0:02:41]} 28. Rd4 {[%emt 0:03:28]} Qb3 {[%emt 0:01:07] normal} 0-1

[Event "GER-ch Youth U14 2019"]
[Site "Willingen"]
[Date "2019.06.09"]
[Round "1.18"]
[White "Haack, Kevin"]
[Black "Straub, Benno"]
[Result "1-0"]
[ECO "A27"]
[WhiteElo "2033"]
[BlackElo "1490"]
[Annotator "NA"]
[PlyCount "75"]
[EventDate "2019.06.07"]
[EventType "swiss"]
[EventRounds "9"]
[EventCountry "GER"]
[SourceTitle "playchess.com"]
[Source "ChessBase"]
[SourceQuality "1"]
[TimeControl "40/5400+30:1800+30"]

1. c4 {[%emt 0:00:00]} e5 {[%emt 0:00:00]} 2. Nc3 {[%emt 0:00:00]} Nc6 {[%emt 0:00:00]} 3. Nf3 {[%emt 0:00:00]} Bc5 {[%emt 0:00:31]} 4. Nxe5 {[%emt 0:01:04]} Nxe5 {[%emt 0:00:31]} 5. d4 {[%emt 0:00:07]} Bd6 {[%emt 0:00:56]} 6. dxe5 {[%emt 0:01:23]} Bxe5 {[%emt 0:00:11]} 7. g3 {[%emt 0:01:13]} c6 {[%emt 0:01:36]} 8. Bg2 {[%emt 0:01:45]} Nf6 {[%emt 0:00:50]} 9. O-O {[%emt 0:02:33]} h6 {[%emt 0:00:51]} 10. Qc2 {[%emt 0:02:52]} O-O {[%emt 0:00:45]} 11. Rd1 {[%emt 0:01:14]} Qe7 {[%emt 0:01:41]} 12. e3 {[%emt 0:08:29]} Rd8 {[%emt 0:01:13]} 13. b3 {[%emt 0:09:43]} Kf8 {[%emt 0:04:59]} 14. Bb2 {[%emt 0:02:56]} Re8 {[%emt 0:01:08]} 15. Rd2 {[%emt 0:04:08]} d6 {[%emt 0:01:41]} 16. Ne2 {[%emt 0:04:13]} Ng4 {[%emt 0:03:27]} 17. h3 {[%emt 0:03:01]} Nxf2 {[%emt 0:03:07]} 18. Kxf2 {[%emt 0:01:27]} Bxb2 {[%emt 0:00:06]} 19. Qxb2 {[%emt 0:00:17]} Qxe3+ {[%emt 0:00:04]} 20. Kf1 {[%emt 0:01:02]} Bf5 {[%emt 0:02:06]} 21. Qd4 {[%emt 0:01:14]} Re6 {[%emt 0:04:05]} 22. Nf4 {[%emt 0:04:15]} Re7 {[%emt 0:02:11]} 23. Qxd6 {[%emt 0:03:19]} Kg8 {[%emt 0:00:20]} 24. Re2 {[%emt 0:05:39]} Qc3 {[%emt 0:01:25]} 25. Qxe7 {[%emt 0:03:04]} Qxa1+ {[%emt 0:00:12]} 26. Kf2 {[%emt 0:00:40]} Qd4+ {[%emt 0:01:16]} 27. Qe3 {[%emt 0:00:22]} Qxe3+ {[%emt 0:00:59]} 28. Rxe3 {[%emt 0:00:50]} Kf8 {[%emt 0:00:13]} 29. g4 {[%emt 0:00:47]} Bb1 {[%emt 0:00:47]} 30. Be4 {[%emt 0:02:31]} Bxa2 {[%emt 0:03:23]} 31. Ne2 {[%emt 0:00:31]} a5 {[%emt 0:01:49]} 32. Nc1 {[%emt 0:00:27]} a4 {[%emt 0:00:06]} 33. Nxa2 {[%emt 0:00:19]} axb3 {[%emt 0:00:04]} 34. Nc3 {[%emt 0:00:37]} Ra6 {[%emt 0:02:27]} 35. Re2 {[%emt 0:01:08]} b5 {[%emt 0:00:39]} 36. cxb5 {[%emt 0:00:33]} cxb5 {[%emt 0:00:06]} 37. Nxb5 {[%emt 0:00:49]} Ra2 {[%emt 0:00:05]} 38. Nc3 {[%emt 0:00:20] normal} 1-0